bitfinex-derivatives/quotes_BTCF0:USTF0_20260127
["timestamp","ask_amount","ask_price","bid_price","bid_amount"]
[1769539987334,0.011375,88026.0,88013.0,0.00978592]
[1769539987518,0.011375,88024.0,88013.0,0.00978592]
[1769539987724,0.011376,88022.0,88008.0,0.00978592]
[1769539988029,0.00258838,88021.0,88008.0,0.02116292]
[1769539988218,0.00258838,88021.0,88010.0,0.011377]
[1769539989522,0.00258838,88021.0,88010.0,0.011417]
[1769539990923,0.00258838,88021.0,87979.0,0.23671671]
[1769539990924,0.011377,88010.0,88003.0,9.2e-07]
[1769539991231,0.00258838,88009.0,88003.0,9.2e-07]
[1769539991434,0.011376,88016.0,88003.0,9.2e-07]
[1769539991632,0.00258838,88015.0,88003.0,9.2e-07]
[1769539992117,0.00258838,88015.0,88001.0,0.1024]
[1769539992118,0.0094477,88014.0,88001.0,0.1024]
[1769539992318,0.00258838,88013.0,88001.0,0.1024]
[1769539992534,0.011377,88011.0,88001.0,0.1024]
[1769539992735,0.00258838,88010.0,88001.0,0.1024]
[1769539992940,0.011377,88014.0,88001.0,0.1024]
[1769539993144,0.124775,88027.0,88005.0,0.011378]
[1769539993352,0.01203608,88026.0,88006.0,0.00978592]
[1769539993541,0.0094477,88024.0,88007.0,0.02116392]
[1769539993742,0.0094477,88022.0,88007.0,0.02116392]
[1769539993939,0.011376,88020.0,88007.0,0.02116392]
[1769539994141,0.00258838,88019.0,88007.0,0.02116392]
[1769539996144,0.01396438,88019.0,88005.0,4e-05]
[1769539996349,0.00258838,88019.0,88005.0,4e-05]
[1769539996742,0.00258838,88019.0,88006.0,0.02116392]
[1769539996938,0.00258838,88019.0,88007.0,0.00978592]
[1769539997139,0.011376,88018.0,88007.0,0.00978592]
[1769539997351,0.011376,88016.0,88005.0,4e-05]
[1769539997644,0.011376,88016.0,88005.0,8e-05]
[1769539997645,0.00258838,88015.0,88005.0,8e-05]
[1769539998545,0.01203608,88015.0,88005.0,8e-05]
[1769539998851,0.011377,88012.0,88001.0,0.1024]
[1769539999049,0.00258838,88011.0,88001.0,0.1024]
[1769539999846,0.011377,88010.0,87999.0,0.11218592]
[1769540000036,0.00258838,88009.0,87998.0,0.011379]
[1769540000242,0.0094477,88006.0,87988.0,0.13494582]
[1769540000556,0.0094477,88006.0,87971.0,0.011382]
[1769540000557,0.0094477,87999.0,87985.0,0.1024]
[1769540000747,0.00258838,87999.0,87988.0,0.01138]
[1769540000948,0.00258838,87999.0,87988.0,0.00978592]
[1769540001354,0.00258838,87999.0,87990.0,0.01138]
[1769540001952,0.00258838,87999.0,87992.0,0.011379]
[1769540002949,0.00258838,87999.0,87992.0,0.011419]
[1769540003454,0.00258838,87999.0,87992.0,4e-05]
[1769540003651,0.00258838,87999.0,87993.0,0.011379]
[1769540003853,0.02092247,88007.0,87993.0,0.011379]
[1769540004057,0.00258838,88006.0,87993.0,0.011379]
[1769540005252,0.011378,88005.0,87993.0,0.011379]
[1769540005555,0.011378,88003.0,87993.0,4e-05]
[1769540005855,0.00258838,88002.0,87993.0,4e-05]
[1769540006855,0.01138,87986.0,87982.0,8.2e-07]
[1769540007164,0.00258838,87983.0,87975.0,0.011382]
[1769540007755,0.00906169,87987.0,87972.0,0.00921974]
[1769540007942,0.00258838,87983.0,87972.0,0.00921974]
[1769540008255,0.00258838,87983.0,87974.0,0.011382]
[1769540008454,0.11378,87990.0,87977.0,0.00921974]
[1769540008649,0.00258838,87983.0,87977.0,0.00921974]
[1769540008849,0.11146169,87990.0,87967.0,0.1024]
[1769540009050,0.00258838,87983.0,87967.0,0.1024]
[1769540009251,0.00258838,87983.0,87968.0,0.011383]
[1769540009558,0.01396938,87983.0,87967.0,0.113783]
[1769540009761,0.01396938,87983.0,87969.0,0.011382]
[1769540010260,0.00906169,87982.0,87959.0,0.02654143]
[1769540010452,0.00906169,87979.0,87960.0,0.40208]
[1769540010756,0.011382,87977.0,87964.0,0.00921974]
[1769540010958,0.00258838,87976.0,87964.0,0.00921974]
[1769540012354,0.00258838,87976.0,87964.0,0.00925974]
[1769540013253,0.01397038,87976.0,87964.0,0.00925974]
[1769540014745,0.01397038,87976.0,87964.0,0.00929974]
[1769540016056,0.00906169,87985.0,87968.0,0.00921974]
[1769540016359,0.00258838,87984.0,87968.0,0.00921974]
[1769540016862,0.00258838,87984.0,87970.0,0.00921974]
[1769540017059,0.00906169,87983.0,87970.0,0.00921974]
[1769540017259,0.011382,87974.0,87965.0,0.00921974]
[1769540018563,0.01397038,87974.0,87965.0,0.00921974]
[1769540018861,0.00258838,87974.0,87965.0,0.00921974]
[1769540019362,0.00258838,87974.0,87965.0,0.00925974]
[1769540019755,0.00906169,88000.0,87972.0,0.00921974]
[1769540019960,0.01138,87985.0,87972.0,0.00921974]
[1769540020259,0.01396838,87985.0,87972.0,0.00921974]
[1769540020658,0.11382,87989.0,87975.0,0.011382]
[1769540020861,0.00258838,87988.0,87976.0,0.00921974]
[1769540021062,0.01138,87985.0,87976.0,0.00921974]
[1769540021359,0.01396838,87985.0,87976.0,0.00921974]
[1769540022354,0.00906169,87983.0,87972.0,4e-05]
[1769540022565,0.00258838,87982.0,87972.0,4e-05]
[1769540024265,0.00258838,87982.0,87972.0,8e-05]
[1769540024964,0.00906169,87988.0,87972.0,0.00929974]
[1769540025162,0.00258838,87987.0,87974.0,0.011382]
[1769540025367,0.00258838,87987.0,87973.0,0.011382]
[1769540025971,0.01138,87986.0,87973.0,0.011382]
[1769540026265,0.00258838,87985.0,87973.0,0.011382]
[1769540026465,0.00258838,87985.0,87974.0,0.00921974]
[1769540027064,0.011381,87981.0,87974.0,0.00921974]
[1769540027260,0.011381,87984.0,87974.0,0.00921974]
[1769540027460,0.01396938,87984.0,87974.0,0.00921974]
[1769540028065,0.01396938,87984.0,87974.0,0.00925974]
[1769540028370,0.011381,87983.0,87974.0,0.00925974]
[1769540028973,0.011381,87981.0,87974.0,0.00925974]
[1769540029378,0.00258838,87983.0,87974.0,0.00925974]
[1769540030571,0.00906169,87982.0,87974.0,4e-05]
[1769540030773,0.00258838,87983.0,87965.0,4e-05]
[1769540030774,0.00906169,87977.0,87965.0,4e-05]
[1769540030977,0.011382,87970.0,87965.0,4e-05]
[1769540031277,0.00258838,87969.0,87961.0,0.00921974]
[1769540031478,0.011383,87968.0,87960.0,0.09009822]
[1769540031684,0.00258838,87967.0,87960.0,0.09009822]
[1769540031983,0.00258838,87967.0,87960.0,0.09931796]
[1769540032375,0.00258838,87967.0,87961.0,0.00921974]
[1769540032567,0.011382,87971.0,87961.0,0.00921974]
[1769540032767,0.00258838,87970.0,87961.0,0.00921974]
[1769540033072,0.00258838,87970.0,87962.0,0.00921974]
[1769540033772,0.011382,87969.0,87962.0,0.00921974]
[1769540033981,0.011383,87963.0,87953.0,0.00921974]
[1769540034163,0.00258838,87968.0,87953.0,0.00921974]
[1769540034367,0.011382,87974.0,87961.0,0.00960349]
[1769540034677,0.011382,87972.0,87961.0,0.00960349]
[1769540034877,0.00258838,87972.0,87961.0,0.00960349]
[1769540035175,0.01397038,87972.0,87961.0,0.00960349]
[1769540035477,0.01397038,87972.0,87952.0,0.00960349]
[1769540035866,0.01397038,87972.0,87959.0,0.011384]
[1769540036069,0.00258838,87972.0,87960.0,0.00960349]
[1769540036681,0.011382,87976.0,87962.0,0.00960349]
[1769540036887,0.00930796,87989.0,87966.0,0.00960349]
[1769540037075,0.00930796,87987.0,87968.0,0.00960349]
[1769540037263,0.01017054,87986.0,87970.0,0.00960349]
[1769540037468,0.01017054,87986.0,87971.0,0.00258838]
[1769540038072,0.00930796,87985.0,87971.0,0.00258838]
[1769540038279,0.011381,87978.0,87971.0,0.00258838]
[1769540038671,0.01224358,87978.0,87971.0,0.00258838]
[1769540040381,0.01224358,87978.0,87965.0,0.00960349]
[1769540040680,0.01224358,87978.0,87967.0,0.00960349]
[1769540040881,0.011382,87974.0,87961.0,0.12342649]
[1769540041071,0.00086258,87973.0,87962.0,0.00258838]
[1769540041269,0.00086258,87973.0,87963.0,0.00960349]
[1769540041479,0.011382,87971.0,87964.0,0.00960349]
[1769540041690,0.01224458,87971.0,87964.0,0.01219187]
[1769540042076,0.00086258,87971.0,87965.0,0.00960349]
[1769540042377,0.011381,87984.0,87961.0,0.113824]
[1769540042378,0.00930796,87989.0,87971.0,0.00960349]
[1769540042580,0.01138,87986.0,87972.0,0.01219187]
[1769540042876,0.011379,87994.0,87977.0,0.00960349]
[1769540043082,0.10330258,87993.0,87980.0,0.00960349]
[1769540043272,0.10330258,87993.0,87981.0,0.00258838]
[1769540043475,0.011378,88001.0,87982.0,0.00960349]
[1769540043779,0.011378,88001.0,87986.0,0.00960349]
[1769540043780,0.011379,87998.0,87986.0,0.00960349]
[1769540044081,0.10244,88003.0,87988.0,0.00960349]
[1769540044381,0.00086258,88001.0,87990.0,0.00960349]
[1769540044577,0.00086258,88001.0,87991.0,0.00258838]
[1769540046180,0.011378,88000.0,87991.0,0.00258838]
[1769540046385,0.00086258,87999.0,87991.0,0.00258838]
[1769540046882,0.011379,87998.0,87991.0,0.00258838]
[1769540047083,0.10244,88003.0,87992.0,0.00960349]
[1769540047276,0.10244,88003.0,87994.0,0.00960349]
[1769540047478,0.41154796,88010.0,87995.0,0.00258838]
[1769540047678,0.00086258,88009.0,87996.0,0.02098249]
[1769540047886,0.00086258,88009.0,87977.0,0.13536329]
[1769540047887,0.10244,88019.0,88000.0,0.00960349]
[1769540048078,0.113816,88019.0,88005.0,0.00960349]
[1769540048277,0.00930796,88018.0,88000.0,0.02098149]
[1769540048479,0.00930796,88018.0,88002.0,0.00960349]
[1769540048690,0.00930796,88018.0,88003.0,0.00258838]
[1769540049287,0.011377,88015.0,88003.0,0.00258838]
[1769540049489,0.00930796,88018.0,88003.0,0.00258838]
[1769540049490,0.02068396,88018.0,88003.0,0.01396638]
[1769540049986,0.10244,88019.0,88005.0,0.02098149]
[1769540050288,0.10244,88019.0,88007.0,0.00960349]
[1769540050590,0.011376,88018.0,88009.0,0.00960349]
[1769540050885,0.011376,88018.0,88008.0,0.00258838]
[1769540051081,0.10244,88019.0,88008.0,0.00258838]
[1769540051276,0.011376,88018.0,88008.0,0.00258838]
[1769540051594,0.011377,88015.0,88008.0,0.00258838]
[1769540051888,0.011376,88018.0,88003.0,0.00960349]
[1769540052083,0.011376,88018.0,88004.0,0.00258838]
[1769540052385,0.011376,88016.0,88004.0,0.00258838]
[1769540052581,0.00930796,88018.0,88004.0,0.00258838]
[1769540053288,0.011377,88015.0,88004.0,0.00258838]
[1769540054092,0.011376,88016.0,88004.0,0.00258838]
[1769540054389,0.00930796,88018.0,88004.0,0.00258838]
[1769540055890,0.00930796,88018.0,88006.0,0.011378]
[1769540056089,0.011376,88017.0,88007.0,0.00258838]
[1769540056290,0.00930796,88018.0,88007.0,0.00258838]
[1769540058384,0.011375,88028.0,88009.0,0.00960349]
[1769540058593,0.00930796,88026.0,88012.0,0.011377]
[1769540058795,0.00930796,88026.0,88013.0,0.00258838]
[1769540058989,0.011,88027.0,88014.0,0.00960349]
[1769540059194,0.011,88027.0,88018.0,0.00960349]
[1769540059395,0.011,88027.0,88020.0,0.02097949]
[1769540059697,0.011,88027.0,88021.0,0.00258838]
[1769540063804,0.0092362,88025.0,88008.0,0.11228057]
[1769540063991,0.011,88027.0,88014.0,0.011377]
[1769540063992,0.01182458,88024.0,88014.0,0.011377]
[1769540064391,0.01182458,88024.0,88014.0,0.01223982]
[1769540064604,0.00258838,88024.0,88014.0,0.01223982]
[1769540065100,0.00258838,88024.0,88016.0,0.011376]
[1769540065294,0.00258838,88024.0,88017.0,0.00086282]
[1769540067205,0.00258838,88024.0,88019.0,0.011376]
[1769540067590,0.00258838,88024.0,88019.0,0.01223882]
[1769540067798,0.00258838,88024.0,88019.0,0.00086282]
[1769540067997,0.00258838,88024.0,88018.0,0.011376]
[1769540068897,0.00258838,88024.0,88012.0,0.00943906]
[1769540069101,0.00258838,88024.0,88013.0,0.00086282]
[1769540070410,0.00258838,88024.0,88013.0,0.01223982]
[1769540071720,0.00258838,88024.0,88015.0,0.011377]
[1769540071929,0.00258838,88024.0,88015.0,0.01223982]
[1769540072127,0.00258838,88024.0,88015.0,0.00086282]
[1769540072324,0.00916733,88023.0,88008.0,0.11183906]
[1769540072629,0.011,88027.0,88010.0,0.01030188]
[1769540072630,0.00258838,88022.0,88010.0,0.01030188]
[1769540072829,0.00258838,88022.0,88014.0,0.011377]
[1769540073016,0.00258838,88022.0,88014.0,0.00086282]
[1769540073216,0.00258838,88022.0,88019.0,0.011376]
[1769540073423,0.00258838,88022.0,88014.0,0.00086282]
[1769540073629,0.00258838,88022.0,88017.0,0.011376]
[1769540074920,0.00258838,88022.0,88016.0,0.011376]
[1769540075433,0.00258838,88022.0,88014.0,0.01030188]
[1769540075630,0.00258838,88022.0,88015.0,0.011376]
[1769540075831,0.00258838,88022.0,88015.0,0.01223882]
[1769540076221,0.00258838,88022.0,88016.0,0.011376]
[1769540076418,0.00916733,88042.0,88030.0,0.011375]
[1769540076623,0.00916733,88042.0,88031.0,0.00258838]
[1769540076927,0.011373,88041.0,88031.0,0.00258838]
[1769540077120,0.02054033,88041.0,88031.0,0.00258838]
[1769540077429,0.00916733,88040.0,88031.0,0.00258838]
[1769540078521,0.02054033,88039.0,88031.0,0.00258838]
[1769540078830,0.00916733,88039.0,88031.0,0.00258838]
[1769540079624,0.1024,88044.0,88031.0,0.00258838]
[1769540079625,0.00916733,88043.0,88031.0,0.00258838]
[1769540080435,0.00916733,88040.0,88026.0,0.011375]
[1769540080627,0.00916733,88040.0,88028.0,0.011375]
[1769540080826,0.00916733,88040.0,88028.0,0.01396338]
[1769540081125,0.011373,88039.0,88028.0,0.01396338]
[1769540081326,0.02054033,88039.0,88028.0,0.01396338]
[1769540081528,0.00916733,88039.0,88028.0,0.01396338]
[1769540081835,0.00916733,88044.0,88029.0,0.00943906]
[1769540082134,0.00916733,88044.0,88037.0,0.011374]
[1769540082630,0.05,88052.0,88039.0,0.00943906]
[1769540082840,0.05,88052.0,88047.0,0.011372]
[1769540083127,1e-06,88067.0,88063.0,0.01137]
[1769540083335,1e-08,88077.0,88067.0,0.01137]
[1769540083533,1e-08,88077.0,88068.0,0.00258838]
[1769540083738,0.10236,88083.0,88070.0,0.011369]
[1769540084042,0.011,88087.0,88072.0,0.011369]
[1769540084237,0.011,88087.0,88064.0,0.10236]
[1769540084238,0.011,88087.0,88075.0,0.00943906]
[1769540084532,0.011366,88095.0,88078.0,0.00943906]
[1769540084741,0.011366,88099.0,88079.0,0.00258838]
[1769540085032,0.113726,88098.0,88080.0,0.00943906]
[1769540085235,0.113726,88098.0,88081.0,0.00258838]
[1769540085540,0.011366,88095.0,88081.0,0.00258838]
[1769540085838,0.00916733,88095.0,88081.0,0.00258838]
[1769540086135,0.011367,88092.0,88081.0,0.00258838]
[1769540086338,0.011366,88094.0,88081.0,0.00258838]
[1769540087234,0.011367,88091.0,88081.0,0.00258838]
[1769540087435,0.011367,88087.0,88072.0,0.00943906]
[1769540087737,0.00916733,88090.0,88073.0,0.00258838]
[1769540087932,0.011368,88083.0,88068.0,0.00943906]
[1769540088133,0.011368,88083.0,88049.0,0.011372]
[1769540088134,0.011369,88077.0,88058.0,0.00943906]
[1769540088340,0.011369,88077.0,88062.0,0.00258838]
[1769540088735,0.00916733,88081.0,88062.0,0.00258838]
[1769540088933,0.00916733,88081.0,88064.0,0.00943906]
[1769540089130,0.00916733,88089.0,88070.0,0.11781307]
[1769540089439,0.011367,88091.0,88074.0,0.00943906]
[1769540089632,0.011367,88088.0,88075.0,0.01202744]
[1769540089830,0.011367,88086.0,88070.0,0.11781307]
[1769540090036,0.011368,88081.0,88071.0,0.00258838]
[1769540090237,0.011368,88079.0,88069.0,0.10236]
[1769540090427,0.011368,88079.0,88069.0,0.10494838]
[1769540092030,0.00916733,88082.0,88069.0,0.10236]
[1769540092531,0.02053633,88076.0,88061.0,0.10236]
[1769540092736,0.00916733,88075.0,88061.0,0.10494838]
[1769540093736,0.011369,88076.0,88061.0,0.10494838]
[1769540093937,0.011369,88076.0,88061.0,0.11438744]
[1769540094432,0.011368,88079.0,88063.0,0.00986339]
[1769540094630,0.011368,88079.0,88065.0,0.00986339]
[1769540094938,0.011368,88079.0,88066.0,0.00258838]
[1769540095738,0.011368,88079.0,88066.0,0.01245177]
[1769540098540,0.00982339,88085.0,88066.0,0.01245177]
[1769540098930,0.00982339,88083.0,88066.0,0.01245177]
[1769540099838,0.00567714,88073.0,88066.0,0.01245177]
[1769540100342,0.011369,88071.0,88061.0,0.11222339]
[1769540100532,0.00258838,88070.0,88062.0,0.00086282]
[1769540101041,0.007948,88073.0,88065.0,0.00986339]
[1769540101237,0.007948,88073.0,88067.0,0.01137]
[1769540101537,0.00258838,88073.0,88061.0,0.10236]
[1769540101840,0.011366,88098.0,88061.0,0.10236]
[1769540101841,0.00982339,88100.0,88077.0,0.00986339]
[1769540102040,0.00982339,88100.0,88062.0,0.11441402]
[1769540102041,0.011366,88098.0,88082.0,0.011368]
[1769540102231,0.00982339,88097.0,88087.0,0.011367]
[1769540102426,0.00982339,88097.0,88087.0,0.00258838]
[1769540102637,0.011,88107.0,88087.0,0.01245177]
[1769540102837,0.011,88107.0,88088.0,0.00986339]
[1769540103042,2.2e-07,88119.0,88109.0,0.00495007]
[1769540103335,2.2e-07,88119.0,88097.0,0.011366]
[1769540103336,0.01136,88145.0,88126.0,0.00495007]
[1769540103538,0.011358,88156.0,88128.0,0.00495007]
[1769540103732,0.10232,88157.0,88140.0,0.01136]
[1769540103930,0.10232,88157.0,88129.0,0.40434838]
[1769540103931,0.011,88167.0,88150.0,0.011359]
[1769540104130,0.011,88167.0,88129.0,0.29944]
[1769540104131,1e-06,88167.0,88156.0,0.00495007]
[1769540104339,0.011,88187.0,88163.0,0.00495007]
[1769540104541,1.9e-07,88193.0,88172.0,0.00495007]
[1769540104847,1e-06,88207.0,88192.0,0.00465037]
[1769540105136,0.00982339,88239.0,88206.0,0.011352]
[1769540105335,0.00982339,88239.0,88208.0,0.011352]
[1769540105531,0.00982339,88239.0,88209.0,0.10490838]
[1769540106133,0.011349,88230.0,88209.0,0.10232]
[1769540106441,0.02099999,88227.0,88204.0,0.10232]
[1769540106641,0.02099999,88227.0,88203.0,0.10232]
[1769540106942,0.02099999,88227.0,88191.0,0.10228]
[1769540106943,0.01011816,88216.0,88191.0,0.10228]
[1769540107136,0.01011816,88216.0,88192.0,0.00258838]
[1769540107335,0.02146716,88226.0,88192.0,0.00258838]
[1769540107537,0.10228,88224.0,88192.0,0.00258838]
[1769540107841,0.01011816,88211.0,88192.0,0.00258838]
[1769540108141,0.011,88227.0,88204.0,0.011352]
[1769540108445,0.011,88227.0,88206.0,0.011352]
[1769540108645,0.011,88227.0,88207.0,0.40418838]
[1769540108844,0.011,88227.0,88208.0,0.00258838]
[1769540110238,0.011,88227.0,88209.0,0.11336069]
[1769540110434,0.011,88227.0,88209.0,0.11594907]
[1769540110636,6e-07,88220.0,88211.0,0.0123001]
[1769540110839,6e-07,88220.0,88210.0,0.33395333]
[1769540110840,6e-07,88220.0,88213.0,0.011351]
[1769540111039,6e-07,88220.0,88210.0,0.33395333]
[1769540111341,6e-07,88220.0,88211.0,0.40144]
[1769540111543,6e-07,88220.0,88212.0,0.10224]
[1769540111735,6e-07,88220.0,88185.0,0.11335747]
[1769540111934,6e-07,88220.0,88159.0,1.02252]
[1769540111935,6e-07,88220.0,88194.0,0.011353]
[1769540112143,6e-07,88220.0,88195.0,0.40402838]
[1769540112336,0.00999999,88219.0,88196.0,0.10482838]
[1769540112532,0.00999999,88216.0,88144.0,0.01136]
[1769540112741,0.00999999,88216.0,88167.0,0.00258838]
[1769540112953,6e-07,88220.0,88196.0,0.011353]
[1769540113136,6e-07,88220.0,88198.0,0.011353]
[1769540113337,0.01028098,88219.0,88197.0,0.4014]
[1769540113542,0.01028098,88219.0,88198.0,0.29916]
[1769540113842,0.01028098,88219.0,88198.0,0.40398838]
[1769540114046,6e-07,88220.0,88198.0,0.40398838]
[1769540115242,0.011351,88214.0,88198.0,0.4014]
[1769540115549,0.011351,88213.0,88189.0,0.29916]
[1769540115851,0.011351,88213.0,88190.0,0.10478838]
[1769540116054,0.01009105,88210.0,88190.0,0.10478838]
[1769540116438,0.011352,88208.0,88190.0,0.10478838]
[1769540116634,0.011352,88208.0,88190.0,0.1022]
[1769540116852,0.01009105,88210.0,88190.0,0.10478838]
[1769540117151,0.02144205,88210.0,88190.0,0.10478838]
[1769540117650,0.008,88227.0,88191.0,0.11337868]
[1769540117945,0.01019867,88248.0,88191.0,0.11337868]
[1769540117946,0.00493359,88233.0,88221.0,0.01135]
[1769540118140,0.00493359,88233.0,88228.0,0.011349]
[1769540118141,5.9e-07,88233.0,88228.0,0.011349]
[1769540118342,5.9e-07,88233.0,88232.0,0.00258838]
[1769540118545,0.011,88247.0,88232.0,0.00258838]
[1769540118747,0.011,88287.0,88232.0,0.00258838]
[1769540118748,0.00546771,88267.0,88255.0,0.011346]
[1769540118954,0.00546771,88267.0,88256.0,0.00258838]
[1769540119154,0.00546771,88267.0,88252.0,0.011346]
[1769540119353,0.00546771,88267.0,88252.0,0.00258838]
[1769540119852,0.011345,88264.0,88245.0,0.1022]
[1769540120050,0.011345,88261.0,88244.0,0.10057553]
[1769540120245,0.01028784,88261.0,88244.0,0.10057553]
[1769540120441,0.02163284,88260.0,88244.0,0.10057553]
[1769540120641,0.1022,88263.0,88234.0,0.011348]
[1769540120642,0.02204866,88257.0,88234.0,0.011348]
[1769540120857,0.02204866,88257.0,88237.0,0.011348]
[1769540121055,0.01070366,88257.0,88240.0,0.011347]
[1769540121547,0.01070366,88257.0,88235.0,0.011348]
[1769540121749,0.01070366,88257.0,88235.0,0.01393638]
[1769540122445,0.011346,88256.0,88235.0,0.01393638]
[1769540122641,0.011346,88252.0,88231.0,0.1022]
[1769540122846,0.00546771,88267.0,88231.0,0.10478838]
[1769540122847,0.01076688,88266.0,88231.0,0.10478838]
[1769540123060,0.10216,88258.0,88232.0,0.11331958]
[1769540123348,0.10216,88265.0,88238.0,0.011348]
[1769540123551,0.00546771,88267.0,88240.0,0.00846622]
[1769540123742,0.022342,88287.0,88268.0,0.00585493]
[1769540123940,0.022342,88287.0,88272.0,0.011343]
[1769540123941,0.011,88287.0,88272.0,0.011343]
[1769540124138,0.011,88287.0,88265.0,0.10216]
[1769540124346,0.011,88287.0,88266.0,0.01393238]
[1769540124547,0.10216,88286.0,88266.0,0.01393238]
[1769540124753,0.10216,88286.0,88265.0,0.10216]
[1769540124952,0.011342,88285.0,88267.0,0.00258838]
[1769540125149,0.011,88287.0,88268.0,0.011344]
[1769540125353,0.10216,88286.0,88273.0,0.011343]
[1769540125740,0.011,88287.0,88274.0,0.00258838]
[1769540125940,0.011,88287.0,88267.0,0.00642356]
[1769540125941,0.10216,88286.0,88269.0,0.011344]
[1769540126253,0.10216,88286.0,88268.0,0.011344]
[1769540126451,0.10216,88303.0,88283.0,0.00642356]
[1769540126653,0.00937598,88296.0,88277.0,0.011343]
[1769540126839,0.00937598,88296.0,88268.0,0.00258838]
[1769540126840,0.011341,88293.0,88272.0,0.011343]
[1769540127044,0.12461529,88302.0,88280.0,0.011342]
[1769540127257,0.10216,88301.0,88283.0,0.011342]
[1769540127558,0.10216,88301.0,88265.0,0.10216]
[1769540127559,0.00937598,88292.0,88266.0,0.0065976]
[1769540127860,0.00937598,88297.0,88271.0,0.011343]
[1769540128044,0.00937598,88297.0,88274.0,0.011343]
[1769540128246,0.10212,88296.0,88275.0,0.00258838]
[1769540128657,0.10212,88295.0,88279.0,0.011342]
[1769540128953,0.113461,88295.0,88274.0,0.011343]
[1769540129251,0.113461,88295.0,88279.0,0.011343]
[1769540129252,0.10212,88295.0,88279.0,0.011343]
[1769540129453,0.10212,88295.0,88275.0,0.011343]
[1769540129659,0.00937598,88294.0,88271.0,0.011344]
[1769540129854,0.00937598,88294.0,88272.0,0.00258838]
[1769540130054,0.00937598,88290.0,88273.0,0.00258838]
[1769540130243,0.10212,88295.0,88265.0,0.10216]
[1769540130244,0.00937598,88284.0,88265.0,0.10216]
[1769540130447,0.29888,88292.0,88265.0,0.10216]
[1769540130448,0.00937598,88280.0,88265.0,0.10216]
[1769540130848,0.00937598,88280.0,88253.0,0.10212]
[1769540131149,0.00937598,88280.0,88261.0,0.011345]
[1769540131352,0.29888,88285.0,88266.0,0.01791007]
[1769540131547,0.10212,88284.0,88267.0,0.01393238]
[1769540131742,0.10212,88283.0,88267.0,0.01393238]
[1769540131961,0.00937598,88296.0,88267.0,0.00258838]
[1769540132158,0.00937598,88296.0,88273.0,0.011343]
[1769540132159,0.011341,88294.0,88273.0,0.011343]
[1769540132458,0.02071698,88292.0,88274.0,0.00258838]
[1769540132656,0.00937598,88291.0,88274.0,0.00258838]
[1769540132860,0.02071698,88289.0,88267.0,0.011344]
[1769540133154,0.011342,88285.0,88267.0,0.00258838]
[1769540133462,0.00937598,88282.0,88263.0,0.011345]
[1769540133755,0.00937598,88282.0,88266.0,0.011344]
[1769540134261,0.00937598,88280.0,88258.0,0.011345]
[1769540134455,0.00937598,88276.0,88256.0,0.011345]
[1769540134757,0.00937598,88263.0,88232.0,0.00622488]
[1769540135062,0.00937598,88260.0,88241.0,0.00258838]
[1769540135360,0.00937598,88252.0,88234.0,0.011348]
[1769540135560,0.00937598,88252.0,88234.0,0.01393638]
[1769540135762,0.00937598,88252.0,88226.0,0.01133446]
[1769540136054,0.00937598,88252.0,88227.0,0.00258838]
[1769540136258,0.011346,88249.0,88227.0,0.00258838]
[1769540136458,0.011341,88290.0,88249.0,0.0098979]
[1769540136659,0.00937598,88296.0,88272.0,0.011343]
[1769540136864,0.00937598,88296.0,88274.0,0.011343]
[1769540137054,0.011341,88295.0,88275.0,0.00258838]
[1769540137251,0.00937598,88294.0,88267.0,0.10212]
[1769540137459,0.00937598,88284.0,88267.0,0.10212]
[1769540137655,0.00937598,88284.0,88256.0,0.0098979]
[1769540137956,0.011344,88271.0,88256.0,0.00258838]
[1769540138160,0.10212,88271.0,88256.0,0.01393338]
[1769540138348,0.10212,88271.0,88251.0,0.011346]
[1769540138551,0.00937598,88277.0,88254.0,0.011346]
[1769540138860,0.011344,88268.0,88250.0,0.113466]
[1769540139072,0.00937598,88267.0,88251.0,0.011346]
[1769540139254,0.00937598,88278.0,88252.0,0.00258838]
[1769540139559,0.10212,88277.0,88256.0,0.011345]
[1769540139755,0.00937598,88278.0,88259.0,0.011345]
[1769540140062,0.01134,88303.0,88261.0,0.011345]
[1769540140063,0.10212,88277.0,88261.0,0.011345]
[1769540140249,0.10212,88276.0,88257.0,0.011345]
[1769540140451,0.10212,88301.0,88281.0,0.011342]
[1769540140758,0.11346,88301.0,88279.0,0.011342]
[1769540140957,0.11346,88301.0,88282.0,0.011342]
[1769540141160,0.11346,88301.0,88283.0,0.00258838]
[1769540141555,0.01134,88298.0,88280.0,0.011342]
[1769540141750,0.01134,88298.0,88283.0,0.00258838]
[1769540141952,0.01134,88298.0,88274.0,0.0098979]
[1769540141953,0.01134,88299.0,88278.0,0.011343]
[1769540142154,0.011341,88291.0,88274.0,0.011343]
[1769540142454,0.00937598,88290.0,88275.0,0.011343]
[1769540142663,0.00937598,88290.0,88275.0,0.00258838]
[1769540142861,0.011341,88289.0,88270.0,0.011344]
[1769540143164,0.011343,88279.0,88260.0,0.011345]
[1769540143359,0.10208,88278.0,88261.0,0.00258838]
[1769540143663,0.10208,88278.0,88262.0,0.011345]
[1769540143960,0.113423,88278.0,88261.0,0.011345]
[1769540144169,0.10208,88278.0,88261.0,0.01393338]
[1769540144965,0.10208,88278.0,88263.0,0.011344]
[1769540145267,0.10208,88278.0,88254.0,0.0098979]
[1769540145268,0.00258838,88277.0,88254.0,0.0098979]
[1769540145456,0.00258838,88277.0,88269.0,0.011344]
[1769540145457,0.10208,88277.0,88269.0,0.011344]
[1769540145766,0.10208,88277.0,88257.0,0.0098979]
[1769540145956,0.10208,88277.0,88259.0,0.0098979]
[1769540146152,0.10208,88277.0,88260.0,0.01393338]
[1769540146363,0.01,88289.0,88265.0,0.011344]
[1769540146364,0.011342,88283.0,88265.0,0.011344]
[1769540146555,0.10208,88282.0,88267.0,0.011344]
[1769540146752,0.0017256,88281.0,88263.0,0.011345]
[1769540147367,0.0130676,88281.0,88263.0,0.011345]
[1769540147754,0.0130676,88281.0,88265.0,0.011344]
[1769540147950,0.0017256,88281.0,88265.0,0.011344]
[1769540148154,0.0017256,88281.0,88259.0,0.0098979]
[1769540149159,0.0017256,88281.0,88264.0,0.011344]
[1769540149358,0.0130676,88281.0,88264.0,0.011344]
[1769540149554,0.0130676,88281.0,88252.0,0.10208]
[1769540149555,0.01110158,88281.0,88252.0,0.10208]
[1769540149759,0.40084,88280.0,88256.0,0.0098979]
[1769540149956,0.011343,88277.0,88257.0,0.011345]